{"text_format":"1","workbook":"xlsx","n_sheets":3,"sheets":["Data_Resultaat Sensitivity","Data_Resultaat","Grafieken"],"not_rendered":{"charts":7,"images":5,"macros":1,"external_links":0,"defined_names":382,"comments":1,"pivot_tables":0},"unopened":[],"bounds":{"document_bytes":16777216,"sheet_cells":100000,"rows_first":2000,"rows_last":500,"rows_between":2000,"halvings":0,"cell_chars":16384,"cell_head_chars":4096},"cells_cut":0,"cells_raw":0,"read":"whole","date_system":"1900"}

{"sheet":"Data_Resultaat Sensitivity","index":0,"n_rows":65,"n_cols":8,"rows_kept":65,"cut":false,"hidden":true,"merged":[]}
["OpenSolver Sensitivity Report - CBC"]
["Worksheet: [Routeplanner_demoVeetournee.xlsm] Data_Resultaat Sensitivity"]
["Report Created: 13/07/2018 10:40:08"]
[]
["Decision Variables"]
[null,"Cells","Name","Final Value","Reduced Costs","Objective Value","Allowable Increase","Allowable Decrease"]
[null,"P3","Variabelen Aantal melkkoeien",110,0,1870,18.857446400000001,438.9203316]
[null,"Q3","Variabelen Aantal extra stalplaatsen melkkoeien",0,-18.857445999999999,-457.77777777776646,18.85744635,1E+100]
[null,"R3","Variabelen Aantal extra stalplaatsen jongvee",0,-143.05556000000001,-143.05555555556202,143.05555559999999,1E+100]
[null,"S3","Variabelen Aantal verkochte stierkalveren",44.010576999999998,0,100,47.132286120000003,1097.037118]
[null,"T3","Variabelen Aantal verkochte vaarskalveren",23.484583000000001,0,100,88.326845410000004,1278.648903]
[null,"U3","Variabelen Aantal jongvee 14 dagen naar eigen opfok",20.656535000000002,0,0,123.9189889,11.39464216]
[null,"V3","Variabelen Aantal jongvee 14 dagen bestemd voor externe opfok",9.6495871999999991,0,0,9.7684201710000007,72.269889120000002]
[null,"W3","Variabelen Aantal jongvee die vertrekken naar externe opfok",9.6024113999999994,0,0,9.8164115160000005,72.624944400000004]
[null,"X3","Variabelen Aantal jongvee die terugkeren uit externe opfok",9.4658438,0,0,9.9580369310000005,73.672734399999996]
[null,"Y3","Variabelen GAD tot 1 jaar",27.957402999999999,0,-225,249.66888299999999,28.55249216]
[null,"Z3","Variabelen GAD tussen 1 en 2 jaar",19.438441999999998,0,-225,150.9089998,14.11018172]
[null,"AA3","Variabelen GAD jongvee boven 2 jaar",0,-957.48546999999996,-225,957.48546520000002,1E+100]
[null,"AB3","Variabelen GAD elders opgefokt",12.71217,0,-659.99999999998545,7.4150377949999999,54.85881543]
[null,"AC3","Variabelen Aantal aangekochte vaarzen",0,-95.256221999999994,-1399.9999999999854,95.256222230000006,1E+100]
[null,"AD3","Variabelen Oppervlakte mais",30.579357000000002,0,-999.99999999998545,954.2123742,182.29592969999999]
[null,"AE3","Variabelen Oppervlakte gras",0,-166.66667000000001,-789.99999999998545,166.66666670000001,1E+100]
[null,"AF3","Variabelen Oppervlakte mais_derogatie",0,-151.56122999999999,-1399.9999999999854,151.56122629999999,1E+100]
[null,"AG3","Variabelen Oppervlakte gras_derogatie",19.420642999999998,0,-789.99999999998545,1028.5711220000001,166.6666669]
[null,"AH3","Variabelen Te pachten grond",0,-530.53093000000001,-999.99999999998545,530.53093049999995,1E+100]
[null,"AI3","Variabelen Mestoverschot",294.66043999999999,0,-10,3.631905186,3.1307336659999998]
[null,"AJ3","Variabelen Aantal reforme koeien",29.7,0,700,69.842394069999997,700.00000039999998]
[null,"AK3","Variabelen Aankoop mais",0,-456.69760000000002,-1700,456.69759640000001,1E+100]
[null,"AL3","Variabelen Aantal aangekochte NERs",0,-0.8034,-0.80340000000433065,0.8034,1E+100]
[null,"AM3","Variabelen Eigen arbeid",3000,0,-10.509999999994761,1E+100,5.4900001400000003]
[null,"AN3","Variabelen Externe arbeid",2232.7154,0,-16.000000100000761,0.75364176250000003,2.5567784329999999]
[null,"AO3","Variabelen Oppervlakte burenregeling",5,0,-125,1E+100,229.1666669]
[null,"AP3","Variabelen Opervlakte overige mestafzet",5,0,0,115.302403,354.16666679999997]
[]
["Constraints"]
[null,"Cells","Name","Final Value","Shadow Price","RHS Value","Allowable Increase","Allowable Decrease"]
[null,"AQ7<=AS7","Aantal melkkoeien",-110,0,0,1E+100,110]
[null,"AQ8<=AS8","Stalplaatsen melkkoeien",110,438.92032999999998,110,12.4817445,4.9986207030000003]
[null,"AQ9<=AS9","Stalplaatsen jongvee",47.395845000000001,0,170,1E+100,122.6041551]
[null,"AQ10<=AS10","Totaal aantal koeien < Totaal aantal stalplaatsen",157.39583999999999,0,170,1E+100,12.604155049999999]
[null,"AQ11<=AS11","Maximaal aantal extra stalplaatsen",0,0,100,1E+100,100]
[null,"AQ12=AS12","Aantal stierkalveren",0,79.222154000000003,0,855.83954270000004,44.010576919999998]
[null,"AQ13=AS13","Aantal vaarskalveren",0,79.222154000000003,0,855.83954270000004,23.484582679999999]
[null,"AQ14<=AS14","Transferrij jongvee externe opfok",0,933.80001000000004,0,8.9207464390000002,83.980359930000006]
[null,"AQ15<=AS15","Transferrij 2 jongvee externe opfok",0,60.924267,0,8.7938736009999996,265.1784912]
[null,"AQ16<=AS16","Gemiddeld aanwezige dieren tot 1 jaar",0,541.70813999999996,0,20.636936930000001,32.826722179999997]
[null,"AQ17<=AS17","Gemiddeld aanwezige dieren tussen 1 en 2j",0,731.41628000000003,0,10.31846846,22.08838617]
[null,"AQ18<=AS18","Gemiddeld aanwezige dieren boven 2j",0,0,0,1E+100,0]
[null,"AQ19<=AS19","Gemiddeld aanwezige dieren externe opfok",0,660,0,12.712170130000001,1E+100]
[null,"AQ20<=AS20","Maximaal aantal externe opfok",9.6024113999999994,0,100,1E+100,90.397588589999998]
[null,"AQ21<=AS21","Minimaal aantal externe opfok",-9.6024113999999994,0,0,1E+100,9.6024114120000004]
[null,"AQ22<=AS22","Minimaal aantal eigen opfok",-20.656535000000002,0,0,1E+100,20.65653528]
[null,"AQ23<=AS23","Aantal melkkoeien contstant houden",0,1304.7438,0,7.3210397990000002,23.014891030000001]
[null,"AQ24<=AS24","Verkoop reforme melkkoeien",0,700,0,1E+100,29.7]
[null,"AQ25<=AS25","Droge stof gras ",50000,9.7863573999999995E-2,50000,25958.38106,55080.978309999999]
[null,"AQ26<=AS26","Droge stof mais",0,8.2886826999999996E-2,0,38937.571580000003,84073.25722]
[null,"AQ27<=AS27","Te pachten oppervlakte",50,115.30240000000001,50,2.595838106,5.6048838139999999]
[null,"AQ28<=AS28","Maximale aankoop mais",0,0,30,1E+100,30]
[null,"AQ29<=AS29","Maximale gepachte oppervlakte",0,0,30,1E+100,30]
[null,"AQ30<=AS30","N-overschot ",1250,2.0833333000000001,1250,1414.37013,1E+100]
[null,"AQ31<=AS31","Aankoop NERs",16591.174999999999,0,17500,1E+100,908.82540470000004]
[null,"AQ32=AS32","Behoefte arbeid = aanbod arbeid",-75,16,-75,2232.7154129999999,1E+100]
[null,"AQ33<=AS33","Eigen arbeid",3000,5.4900000999999996,3000,2232.7154129999999,3000]
[null,"AQ34<=AS34","Benutting mestafzetruimte",55,354.16667000000001,55,8.319824294,5]
[null,"AQ35<=AS35","Burenregeling",5,229.16667000000001,5,8.319824294,5]

{"sheet":"Data_Resultaat","index":1,"n_rows":134,"n_cols":45,"rows_kept":134,"cut":false,"hidden":false,"merged":[[133,2,135,2],[45,2,47,2],[55,6,57,6],[125,2,131,2],[72,6,75,6],[58,6,59,6]]}
[null,null,"DATA Routeplanner Melkvee"]
[null,null,null,null,null,null,null,null,null,null,null,null,null,null,null,"Aantal melkkoeien","Aantal extra stalplaatsen melkkoeien","Aantal extra stalplaatsen jongvee","Aantal verkochte stierkalveren","Aantal verkochte vaarskalveren","Aantal jongvee 14 dagen naar eigen opfok","Aantal jongvee 14 dagen bestemd voor externe opfok","Aantal jongvee die vertrekken naar externe opfok","Aantal jongvee die terugkeren uit externe opfok","GAD tot 1 jaar","GAD tussen 1 en 2 jaar","GAD jongvee boven 2 jaar","GAD elders opgefokt","Aantal aangekochte vaarzen","Oppervlakte mais","Oppervlakte gras","Oppervlakte mais_derogatie","Oppervlakte gras_derogatie","Te pachten grond","Mestoverschot","Aantal reforme koeien","Aankoop mais","Aantal aangekochte NERs","Eigen arbeid","Externe arbeid","Oppervlakte burenregeling","Opervlakte overige mestafzet"]
[null,null,"Algemene data",null,null,null,"Stalplaatsen, grond, mest en NERs",null,null,null,null,null,null,null,"Variabelen",110,0,0,44.010576999999998,23.484583000000001,20.656535000000002,9.6495871999999991,9.6024113999999994,9.4658438,27.957402999999999,19.438441999999998,0,12.71217,0,30.579357000000002,0,0,19.420642999999998,0,294.66043999999999,29.7,0,0,3000,2232.7154,5,5,null,null,"Doelfunctie"]
[null,null,"Melkprijs",34,"€/100 L",null,"Totaal aantal stalplaatsen (melkkoeien of jongvee) beschikbaar op het bedrijf",170,"aantal",null,null,null,null,null,"Bijdrage van de variabele aan de doelfunctie",{"$f":"(Melkprijs/100-Variabele_kosten_melkkoeien_per_100liter_melk/100)*Melkproductie_per_koe","v":1870.0000000000002},{"$f":"-(Investering_stalplaatsen__kosten_per_stalplaats/Afschrijvingstermijn_investering_stalplaatsen*1.03)-(Is_er_een_nieuwe_melkinstallatie_nodig_indien_uw_bedrijf_zou_uitbreiden?*Investering_melkinstallatie__kosten_per_melkkoe/Afschrijvingstermijn_investering_melkinstallatie*1.03)-(Zijn_er_overige_investeringen_nodig_indien_uw_bedrijf_zou_uitbreiden?*Overige_investeringskosten_per_koe/Afschrijvingstermijn_overige_investeringen*1.03)","v":-457.77777777777771},{"$f":"-(Investering_stalplaatsen_jongvee__kosten_per_stalplaats/Afschrijvingstermijn_investering_stalplaatsen*1.03)-(Zijn_er_overige_investeringen_nodig_indien_uw_bedrijf_zou_uitbreiden?*Overige_investeringskosten_per_koe/Afschrijvingstermijn_overige_investeringen*1.03)","v":-143.05555555555557},{"$f":"Prijs_per_stierkalf","v":100},{"$f":"Prijs_per_vaarskalf","v":100},0,0,0,0,{"$f":"-Kost_per_GAD","v":-225},{"$f":"-Kost_per_GAD","v":-225},{"$f":"-Kost_per_GAD","v":-225},{"$f":"-Prijs_externe_opfok*12","v":-660},{"$f":"-Prijs_aangekochte_vaars","v":-1400},{"$f":"-Teeltkost_mais","v":-1000},{"$f":"-Teeltkost_gras","v":-790},{"$f":"-Variabele_teeltkosten_snede_gras_voor_mais-Teeltkost_mais","v":-1400},{"$f":"-Teeltkost_gras","v":-790},{"$f":"-P_Pacht_grond","v":-1000},{"$f":"-Prijs_mestafzet","v":-10},{"$f":"Prijs_per_reforme_melkkoe","v":700},{"$f":"-Aankoopprijs_mais-350","v":-1700},{"$f":"-Prijs_per_NER/5*1.03","v":-0.8034},{"$f":"-Loonkost_eigen_arbeid*Binair_arbeid","v":-10.51},{"$f":"-Loonkost_externe_arbeid*Binair_arbeid-0.0000001","v":-16.000000100000001},{"$f":"-Prijs_voor_mestafzet_in_burenregeling","v":-125},0,null,null,{"$f":"SUMPRODUCT(P3:AO3,P4:AO4)","v":97438.702681728522}]
[null,null,"Melkproductie per koe",8500,"L/melkkoe/jaar",null,"Waarvan x aantal stalplaatsen enkel voor jongvee kunnen worden gebruikt",60,"aantal"]
[null,null,"Variabele kosten voor melkkoeien per 100 liter melk",12,"€/100 L",null,"Maximaal aantal bijkomende stalplaatsen die u wenst bij uitbreiding",100,"aantal"]
[null,null,null,null,null,null,"Voorteelt gras voor maïs zonder derogatie voor afzet rundermengmest",0,"ha",null,null,null,null,"Aantal dieren en stalplaatsen","Aantal melkkoeien",-1,null,null,null,null,null,null,null,null,null,null,null,null,null,null,null,null,null,null,null,null,null,null,null,null,null,null,{"$f":"SUMPRODUCT($P$3:$AP$3,P7:AP7)","v":-110},"<=",{"$f":"-P_Minimaal_aantal_melkkoeien","v":0}]
[null,null,"Tussenkalftijd",390,"dagen",null,"Voorteelt gras voor maïs voor afzet varkensmest",0,"ha",null,null,null,null,null,"Stalplaatsen melkkoeien",1,-1,null,null,null,null,null,null,null,null,null,null,null,null,null,null,null,null,null,null,null,null,null,null,null,null,null,{"$f":"SUMPRODUCT($P$3:$AP$3,P8:AP8)","v":110},"<=",{"$f":"P_Huidig_aantal_stalplaatsen-P_stalplaatsen_jongvee","v":110}]
[null,null,"Percentage melktype vaarskalveren",55,"%",null,"Oppervlakte beschikbaar voor tijdelijk grasland en maïs",50,"ha",null,null,null,null,null,"Stalplaatsen jongvee",null,null,-1,null,null,null,null,null,null,1,1,1,null,null,null,null,null,null,null,null,null,null,null,null,null,null,null,47.395844999999994,"<=",{"$f":"P_Huidig_aantal_stalplaatsen","v":170}]
[null,null,"Sterftepercentage kalveren tot 14 dagen",5,"%",null,"Variabele teeltkosten gras",790,"euro/ha/jaar",null,null,null,null,null,"Totaal aantal koeien < Totaal aantal stalplaatsen",1,-1,-1,null,null,null,null,null,null,1,1,1,null,null,null,null,null,null,null,null,null,null,null,null,null,null,null,157.39584500000001,"<=",{"$f":"P_Huidig_aantal_stalplaatsen","v":170}]
[null,null,"Sterftepercentage jongvee vanaf 14 dagen tot afkalfleeftijd",2,"%",null,"Variabele teeltkosten mais",1000,"euro/ha/jaar",null,null,null,null,null,"Maximaal aantal extra stalplaatsen",null,1,1,null,null,null,null,null,null,null,null,null,null,null,null,null,null,null,null,null,null,null,null,null,null,null,null,0,"<=",{"$f":"Maximaal_aantal_bijkomende_stalplaatsen_die_u_wenst_bij_uitbreiding","v":100}]
[null,null,"Verblijftijd stierkalveren die worden verkocht",14,"dagen",null,"Pachtprijs grond",1000,"euro/ha/jaar",null,null,null,null,"Jongvee tot 1 jaar","Aantal stierkalveren",{"$f":"-(365/Tussenkalftijd)*(1-Percentage_vaarskalveren/100)*(1-Sterftepercentage_kalveren_tot_14_dagen/100)","v":-0.40009615384615377},null,null,1,null,null,null,null,null,null,null,null,null,null,null,null,null,null,null,null,null,null,null,null,null,null,null,7.6923086567148857E-8,"=",0]
[null,null,"Verblijftijd vaarskalveren die worden verkocht",14,"dagen",null,"Maximale oppervlakte grond die kan worden gepacht",30,"ha",null,null,null,null,null,"Aantal vaarskalveren",{"$f":"-(365/Tussenkalftijd)*(Percentage_vaarskalveren/100)*(1-Sterftepercentage_kalveren_tot_14_dagen/100)","v":-0.48900641025641028},null,null,null,1,1,1,null,null,null,null,null,null,null,null,null,null,null,null,null,null,null,null,null,null,null,null,7.1794868716779092E-8,"=",0]
[null,null,"Leeftijd jongvee bij vertrek naar opfok elders",6,"maanden",null,"Opbrengst gras (droge stof)",10,"ton DS/ha/jaar",null,null,null,null,null,"Transferrij jongvee externe opfok",null,null,null,null,null,null,{"$f":"1-((Uitvalpercentage_tot_afkalfleeftijd/100)/(Afkalfleeftijd-0.5)*(Leeftijd_jongvee_naar_opfok_elders-0.5))","v":0.99511111111111106},-1,null,null,null,null,null,null,null,null,null,null,null,null,null,null,null,null,null,null,null,4.0355555341875515E-8,"<=",0]
[null,null,"Afkalfleeftijd",23,"maanden",null,"Opbrengst maïs (droge stof)",15,"ton DS/ha/jaar",null,null,null,null,null,"Transferrij 2 jongvee externe opfok",null,null,null,null,null,null,null,{"$f":"(1-(Uitvalpercentage_tot_afkalfleeftijd/100)/(Afkalfleeftijd-0.5)*(Afkalfleeftijd-1-Leeftijd_jongvee_naar_opfok_elders))","v":0.98577777777777775},-1,null,null,null,null,null,null,null,null,null,null,null,null,null,null,null,null,null,null,-2.8800000606565845E-8,"<=",0]
[null,null,"Variabele kosten per gemiddeld aanwezig stuk jongvee ",225,"€/GAD1/jaar",null,"Aankoopprijs maïs op stam per ha (excl. hakselen)",1350,"euro/ha",null,null,null,null,null,"Gemiddeld aanwezige dieren tot 1 jaar",null,null,null,{"$f":"Verblijftijd_stierkalveren/365","v":3.8356164383561646E-2},{"$f":"Verblijftijd_vaarskalveren/365","v":3.8356164383561646E-2},{"$f":"1 - (((Uitvalpercentage_tot_afkalfleeftijd/100)/(Afkalfleeftijd-0.5)*11.5)*(5.5/11.5))","v":0.99511111111111106},{"$f":"IF(Leeftijd_jongvee_naar_opfok_elders<=12,(1-(Uitvalpercentage_tot_afkalfleeftijd/100)/(Afkalfleeftijd-0.5)*(Leeftijd_jongvee_naar_opfok_elders-0.5))*Leeftijd_jongvee_naar_opfok_elders/12+(Uitvalpercentage_tot_afkalfleeftijd/100)/(Afkalfleeftijd-0.5)*(Leeftijd_jongvee_naar_opfok_elders-0.5)*Leeftijd_jongvee_naar_opfok_elders/12/2,(1-(Uitvalpercentage_tot_afkalfleeftijd/100)/(Afkalfleeftijd-0.5)*(12-0.5))*12/12+(Uitvalpercentage_tot_afkalfleeftijd/100)/(Afkalfleeftijd-0.5)*(12-0.5)*12/12/2)","v":0.49877777777777776},null,null,-1,null,null,null,null,null,null,null,null,null,null,null,null,null,null,null,null,null,-3.9230076254170854E-7,"<=",0]
[null,null,null,null,null,null,"Maximale hoeveelheid maïs op stam die kan worden aangekocht",30,"ha/jaar",null,null,null,null,"Jongvee tot 2 jaar","Gemiddeld aanwezige dieren tussen 1 en 2j",null,null,null,null,null,{"$f":"IF(Afkalfleeftijd<=24,(1-(Uitvalpercentage_tot_afkalfleeftijd/100)/(Afkalfleeftijd-0.5)*(12-0.5))*((Uitvalpercentage_tot_afkalfleeftijd/100)/(Afkalfleeftijd-0.5)*(Afkalfleeftijd-12)*(Afkalfleeftijd-12)/12/2+(1-(Uitvalpercentage_tot_afkalfleeftijd/100)/(Afkalfleeftijd-0.5)*(Afkalfleeftijd-12))*(Afkalfleeftijd-12)/12),(1-(Uitvalpercentage_tot_afkalfleeftijd/100)/(Afkalfleeftijd-0.5)*(12-0.5))*((Uitvalpercentage_tot_afkalfleeftijd/100)/(Afkalfleeftijd-0.5)*(Afkalfleeftijd-12)*6/12+(1-(Uitvalpercentage_tot_afkalfleeftijd/100)/(Afkalfleeftijd-0.5)*(Afkalfleeftijd-12))))","v":0.90286062551440338},null,{"$f":"IF(Leeftijd_jongvee_naar_opfok_elders>12,(Leeftijd_jongvee_naar_opfok_elders-12)/12,0)","v":0},{"$f":"IF(Afkalfleeftijd-1>23,0,(1-(Uitvalpercentage_tot_afkalfleeftijd/100)/(Afkalfleeftijd-0.5))*1/12+(Uitvalpercentage_tot_afkalfleeftijd/100)/(Afkalfleeftijd-0.5)*1/12/2)","v":8.3296296296296299E-2},null,-1,null,null,null,null,null,null,null,null,null,null,null,null,null,null,null,null,-1.5908057093838579E-7,"<=",0]
[null,null,"Prijs per reforme melkkoe",700,"€/koe",null,"Oppervlakte voor mestafzet in burenregeling",5,"ha",null,null,null,null,"Jongvee boven 2 jaar","Gemiddeld aanwezige dieren boven 2j",null,null,null,null,null,{"$f":"IF(Afkalfleeftijd>24,(1-(Uitvalpercentage_tot_afkalfleeftijd/100)/(Afkalfleeftijd-0.5)*(24-0.5))*((Uitvalpercentage_tot_afkalfleeftijd/100)/(Afkalfleeftijd-0.5)*(Afkalfleeftijd-24)*(Afkalfleeftijd-24)/12/2+(1-(Uitvalpercentage_tot_afkalfleeftijd/100)/(Afkalfleeftijd-0.5)*(Afkalfleeftijd-24))*(Afkalfleeftijd-24)/12),0)","v":0},null,null,{"$f":"IF(Afkalfleeftijd-1>23,(1-(Uitvalpercentage_tot_afkalfleeftijd/100)/(Afkalfleeftijd-0.5))*1/12+(Uitvalpercentage_tot_afkalfleeftijd/100)/(Afkalfleeftijd-0.5)*1/12/2,0)","v":0},null,null,-1,null,null,null,null,null,null,null,null,null,null,null,null,null,null,null,0,"<=",0]
[null,null,"Prijs verkoop stierkalf",100,"€/kalf",null,"Prijs voor mestafzet in burenregeling",125,"euro/ha",null,null,null,null,"Extern jongvee","Gemiddeld aanwezige dieren externe opfok",null,null,null,null,null,null,null,{"$f":"(1-(Uitvalpercentage_tot_afkalfleeftijd/100)/(Afkalfleeftijd-0.5)*(Afkalfleeftijd-1-Leeftijd_jongvee_naar_opfok_elders))*(Afkalfleeftijd-1-Leeftijd_jongvee_naar_opfok_elders)/12+(Uitvalpercentage_tot_afkalfleeftijd/100)/(Afkalfleeftijd-0.5)*(Afkalfleeftijd-1-Leeftijd_jongvee_naar_opfok_elders)*(Afkalfleeftijd-1-Leeftijd_jongvee_naar_opfok_elders)/12/2","v":1.3238518518518518},null,null,null,null,-1,null,null,null,null,null,null,null,null,null,null,null,null,null,null,1.1413333211862664E-7,"<=",0]
[null,null,"Prijs verkoop vaarskalf",100,"€/kalf",null,"Prijs per ton externe mestafzet (gemiddelde lange afstandstransport en verwerking)",10,"euro/ton mest",null,null,null,null,null,"Maximaal aantal externe opfok",null,null,null,null,null,null,null,1,null,null,null,null,null,null,null,null,null,null,null,null,null,null,null,null,null,null,null,9.6024113999999994,"<=",{"$f":"P_Maximaal_aantal_jongvee_externe_opfok","v":100}]
[null,null,"Prijs externe opfok per gemiddeld aanwezig stuk jongvee",55,"€/maand",null,"Beschikbare oppervlakte voor mestafzet van melkvee en jongvee",60,"ha",null,null,null,null,null,"Minimaal aantal externe opfok",null,null,null,null,null,null,null,-1,null,null,null,null,null,null,null,null,null,null,null,null,null,null,null,null,null,null,null,-9.6024113999999994,"<=",{"$f":"-P_Minimaal_aantal_jongvee_externe_opfok","v":0}]
[null,null,"Prijs aangekochte vaars",1400,"€/vaars",null,"Oppervlakte blijvend grasland",5,"ha",null,null,null,null,null,"Minimaal aantal eigen opfok",null,null,null,null,null,-1,null,null,null,null,null,null,null,null,null,null,null,null,null,null,null,null,null,null,null,null,null,-20.656535000000002,"<=",{"$f":"-P_Minimaal_aantal_jongvee_eigen_opfok","v":0}]
[null,null,null,null,null,null,"Kunt u mest afzetten op maïs op stam die u zou aankopen?",0,"0=neen, 1=ja",null,null,null,null,"Veebeweging","Aantal melkkoeien contstant houden",{"$f":"Vervangingspercentage_oude_dieren/100","v":0.27},null,null,null,null,{"$f":"-(1-Uitvalpercentage_tot_afkalfleeftijd/100)","v":-0.98},{"$f":"-(1-Uitvalpercentage_tot_afkalfleeftijd/100)","v":-0.98},null,null,null,null,null,null,-1,null,null,null,null,null,null,null,null,null,null,null,null,null,2.4400000242508213E-7,"<=",0]
[null,null,"Vervangingspercentage",27,"%",null,"Aantal beschikbare NERs",17500,"aantal",null,null,null,null,null,"Verkoop reforme melkkoeien",{"$f":"-Vervangingspercentage_oude_dieren/100","v":-0.27},null,null,null,null,null,null,null,null,null,null,null,null,null,null,null,null,null,null,null,1,null,null,null,null,null,null,-3.5527136788005009E-15,"<=",0]
[null,null,null,null,null,null,"Prijs per NER",3.9,"euro",null,null,null,null,"Grond","Droge stof gras ",{"$f":"(Dagelijkse_opname_voordroogkuil_per_melkkoe_in_lactatie*Lactatieduur+Dagelijkse_opname_voordroogkuil_per_melkkoe_in_droogstand*(Tussenkalftijd-Lactatieduur))/Tussenkalftijd*365*1.1","v":1877.7846153846156},null,null,null,null,null,null,null,null,{"$f":"(1-Houdt_u_het_jongvee___1_jaar_op_krachtvoeder_en_stro?)*P25*0.3","v":563.33538461538467},{"$f":"(1-Houdt_u_het_jongvee_tussen_1_en_2_jaar_op_krachtvoeder_en_stro?)*P25*0.6","v":1126.6707692307693},{"$f":"P25*1","v":1877.7846153846156},null,null,null,{"$f":"-Opbrengst_gras__droge_stof*1000","v":-10000},{"$f":"-Opbrengst_snede_gras_voor_mais__droge_stof*1000*Mogelijkheid_tot_derogatie__op_grasland_en_of_maïs_voorafgegaan_door_snede_gras","v":-2500},{"$f":"-Opbrengst_gras__droge_stof*1000*Mogelijkheid_tot_derogatie__op_grasland_en_of_maïs_voorafgegaan_door_snede_gras","v":-10000},null,null,null,null,null,null,null,null,null,49999.996464947733,"<=",{"$f":"Oppervlakte_blijvend_grasland*Opbrengst_gras__droge_stof*1000+(Oppervlakte_gras_voor_maïs_gecombineerd_voor_rundermest_zonder_derogatie+Oppervlakte_gras_voor_maïs_gecombineerd_voor_varkensmest)*Opbrengst_snede_gras_voor_mais__droge_stof*1000","v":50000}]
[null,null,"Optioneel in te vullen data (indien geen specifieke voorkeur, kies voorbeeldwaarden)",null,null,null,"Lasten en investeringen bij uitbreiding",null,null,null,null,null,null,null,"Droge stof mais",{"$f":"(Dagelijkse_opname_mais_per_melkkoe_in_lactatie*Lactatieduur+Dagelijkse_opname_mais_per_melkkoe_in_droogstand*(Tussenkalftijd-Lactatieduur))/Tussenkalftijd*365*1.1","v":3527.0230769230775},null,null,null,null,null,null,null,null,{"$f":"(1-Houdt_u_het_jongvee___1_jaar_op_krachtvoeder_en_stro?)*P26*0.3","v":1058.1069230769233},{"$f":"(1-Houdt_u_het_jongvee_tussen_1_en_2_jaar_op_krachtvoeder_en_stro?)*P26*0.6","v":2116.2138461538466},{"$f":"P26*1","v":3527.0230769230775},null,null,{"$f":"-Opbrengst_mais*1000","v":-15000},null,{"$f":"-Opbrengst_mais_na_snede_gras__droge_stof*1000*Mogelijkheid_tot_derogatie__op_grasland_en_of_maïs_voorafgegaan_door_snede_gras","v":-14000},null,null,null,null,{"$f":"-Opbrengst_mais*1000","v":-15000},null,null,null,null,null,5.2351484773680568E-3,"<=",{"$f":"(Oppervlakte_gras_voor_maïs_gecombineerd_voor_rundermest_zonder_derogatie+Oppervlakte_gras_voor_maïs_gecombineerd_voor_varkensmest)*Opbrengst_mais_na_snede_gras__droge_stof*1000","v":0}]
[null,null,"Minimaal aantal vaarskalveren die jaarlijks vertrekken naar externe opfok",0,"aantal",null,"Investering stalplaatsen jongvee: kosten per stalplaats",2000,"euro/stalplaats",null,null,null,null,null,"Te pachten oppervlakte",null,null,null,null,null,null,null,null,null,null,null,null,null,null,1,1,{"$f":"1*Mogelijkheid_tot_derogatie__op_grasland_en_of_maïs_voorafgegaan_door_snede_gras","v":1},{"$f":"1*Mogelijkheid_tot_derogatie__op_grasland_en_of_maïs_voorafgegaan_door_snede_gras","v":1},-1,null,null,null,null,null,null,null,null,50,"<=",{"$f":"P_Oppervlakte_eigen_grond","v":50}]
[null,null,"Maximaal aantal vaarskalveren die jaarlijks vertrekken naar externe opfok",100,"aantal",null,"Investering stalplaatsen melkkoeien: kosten per stalplaats",4500,"euro/stalplaats",null,null,null,null,null,"Maximale aankoop mais",null,null,null,null,null,null,null,null,null,null,null,null,null,null,null,null,null,null,null,null,null,1,null,null,null,null,null,0,"<=",{"$f":"Maximale_hoeveelheid_aankoop_mais","v":30}]
[null,null,"Minimaal aantal vaarskalveren die jaarlijks in eigen opfok gaan",0,"aantal",null,"Afschrijvingstermijn investering stalplaatsen",18,"jaren",null,null,null,null,null,"Maximale gepachte oppervlakte",null,null,null,null,null,null,null,null,null,null,null,null,null,null,null,null,null,null,1,null,null,null,null,null,null,null,null,0,"<=",{"$f":"Maximale_oppervlakte_grond_die_kan_worden_gepacht","v":30}]
[null,null,"Minimaal aantal melkkoeien",0,"aantal",null,"Is er een nieuwe melkinstallatie nodig indien uw bedrijf zou uitbreiden?",1,"0=neen, 1=ja",null,null,null,null,"Mest","N-overschot ",{"$f":"127*0.9","v":114.3},null,null,null,null,null,null,null,null,{"$f":"33*0.9","v":29.7},{"$f":"58*0.9","v":52.2},{"$f":"77*0.9","v":69.3},null,null,{"$f":"-170","v":-170},{"$f":"-170","v":-170},{"$f":"-250*Mogelijkheid_tot_derogatie__op_grasland_en_of_maïs_voorafgegaan_door_snede_gras","v":-250},{"$f":"-250*Mogelijkheid_tot_derogatie__op_grasland_en_of_maïs_voorafgegaan_door_snede_gras","v":-250},null,{"$f":"-1*4.8","v":-4.8},null,{"$f":"-Kunt_u_mest_afzetten_op_maïs_op_stam_die_u_zou_aankopen?*170","v":0},null,null,null,-170,-170,1249.9999894999983,"<=",{"$f":"Oppervlakte_blijvend_grasland*Mogelijkheid_tot_derogatie__op_grasland_en_of_maïs_voorafgegaan_door_snede_gras*250+Oppervlakte_blijvend_grasland*(1-Mogelijkheid_tot_derogatie__op_grasland_en_of_maïs_voorafgegaan_door_snede_gras)*170+Oppervlakte_gras_voor_maïs_gecombineerd_voor_rundermest_zonder_derogatie*170","v":1250}]
[null,null,null,null,null,null,"Investering melkinstallatie: kosten per melkkoe",3000,"euro/melkkoe",null,null,null,null,"NER","Aankoop NERs",127,null,null,null,null,null,null,null,null,43,73,106.5,null,null,null,null,null,null,null,null,null,null,-1,null,null,null,null,16591.174595,"<=",{"$f":"Aantal_beschikbare_NERs","v":17500}]
[null,null,"Derogatie",null,null,null,"Afschrijvingstermijn investering melkinstallatie",18,"jaren",null,null,null,null,"Arbeid","Behoefte arbeid = aanbod arbeid",{"$f":"39-Bin_Beschikt_u_over_een_melkrobot?*0.3*39","v":39},null,null,null,null,null,null,null,null,7,7,7,null,null,8,15,13,15,null,null,null,null,null,-1,-1,null,null,-74.99998400000004,"=",{"$f":"-(Oppervlakte_gras_voor_maïs_gecombineerd_voor_rundermest_zonder_derogatie+Oppervlakte_gras_voor_maïs_gecombineerd_voor_varkensmest)*13-Oppervlakte_blijvend_grasland*15","v":-75}]
[null,null,"Wenst u dat het model rekening houdt met de mogelijkheid tot derogatie (op grasland en/of maïs voorafgegaan door snede gras)",1,"0=neen, 1=ja",null,"Zijn er overige investeringen nodig indien uw bedrijf zou uitbreiden?",1,"0=neen, 1=ja",null,null,null,null,null,"Eigen arbeid",null,null,null,null,null,null,null,null,null,null,null,null,null,null,null,null,null,null,null,null,null,null,null,1,null,null,null,3000,"<=",{"$f":"Beschikbare_eigen_arbeid","v":3000}]
[null,null,"Opbrengst snede gras voor mais (droge stof)",2.5,"ton DS/ha/jaar",null,"Overige investeringskosten per koe",500,"euro/koe",null,null,null,null,"Mestafzetruimte","Benutting mestafzetruimte",null,null,null,null,null,null,null,null,null,null,null,null,null,null,1,1,1,1,-1,null,null,null,null,null,null,null,1,55,"<=",{"$f":"Beschikbare_oppervlakte_voor_mestafzet-Oppervlakte_blijvend_grasland-Oppervlakte_gras_voor_maïs_gecombineerd_voor_rundermest_zonder_derogatie","v":55}]
[null,null,"Opbrengst mais na snede gras (droge stof)",14,"ton DS/ha/jaar",null,"Afschrijvingstermijn overige investeringen ",18,"jaren",null,null,null,null,null,"Burenregeling",null,null,null,null,null,null,null,null,null,null,null,null,null,null,null,null,null,null,null,null,null,null,null,null,null,1,null,5,"<=",{"$f":"Oppervlakte_voor_mestafzet_in_burenregeling","v":5}]
[null,null,"Variabele teeltkosten snede gras voor mais",400,"euro/ha/jaar"]
[null,null,null,null,null,null,"Rantsoen"]
[null,null,"Arbeid",null,null,null,"Dagelijkse opname mais per melkkoe in lactatie",9,"kg DS/melkkoe/dag"]
[null,null,"Wenst u dat het model rekening houdt met kosten voor eigen en externe arbeid?",1,"0=neen, 1=ja",null,"Dagelijkse opname voordroogkuil per melkkoe in lactatie",5,"kg DS/melkkoe/dag"]
[null,null,"Beschikbare eigen arbeid",3000,"uren/jaar",null,"Lactatieduur",348,"dagen"]
[null,null,"Vergoeding eigen arbeid",10.51,"euro/uur",null,"Dagelijkse opname mais per melkkoe in droogstand",7,"kg DS/melkkoe/dag"]
[null,null,"Vergoeding externe arbeid",16,"euro/uur",null,"Dagelijkse opname voordroogkuil per melkkoe in droogstand",2,"kg DS/melkkoe/dag"]
[null,null,"Beschikt u over een melkrobot?",0,"0=neen, 1=ja",null,"Houdt u het jongvee < 1 jaar op krachtvoeder en stro?",0,"0=neen, 1=ja"]
[null,null,null,null,null,null,"Houdt u het jongvee tussen 1 en 2 jaar op krachtvoeder en stro?",0,"0=neen, 1=ja"]
[null,null,"1 Gemiddeld aanwezig dier"]
[null,null,"RESULTAAT Routeplanner Melkvee"]
[]
[]
[]
[]
[]
[]
[]
[]
[null,null,"Optimale bedrijfssituatie",null,null,null,"Economische prestaties in optimale bedrijfssituatie"]
[null,null,"Aantal melkkoeien",110,"aantal",null,"Bruto saldo  (melkgeld, verkoop kalveren en reforme koeien, variabele kosten voor melkkoeien en jongvee incl. voederkosten, eventuele kosten voor mestafzet, externe opfok jongvee of aankoop vaarzen)",160742.14930500006,"euro/bedrijf/jaar"]
[null,null,"Benutte bestaande stalplaatsen voor melkkoeien",110,"aantal",null,null,1461.2922664090913,"euro/melkkoe/jaar"]
[null,null,"Extra stalplaatsen voor melkkoeien door uitbreiding",0,"aantal",null,null,17.1916737224599,"euro/100 L"]
[null,null,"Benutte stalplaatsen voor jongvee",47.395844999999994,"aantal",null,"Investeringslasten door uitbreiding ",0,"euro/bedrijf/jaar"]
[null,null,"Extra stalplaatsen voor jongvee door uitbreiding",0,"aantal",null,null,0,"euro/100 L"]
[null,null,"Som van aantal verkochte stierkalveren en kruislingvaarskalveren",44.010576999999998,"aantal/jaar",null,"Betaalde pacht ",0,"euro/bedrijf/jaar"]
[null,null,"Aantal verkochte melktype vaarskalveren",23.484583000000001,"aantal/jaar",null,"Aangekochte NERs ",0,"euro/bedrijf/jaar"]
[null,null,"Aantal vaarskalveren die jaarlijks in eigen opfok gaan",20.656535000000002,"aantal/jaar",null,"Vergoeding eigen arbeid ",31530,"euro/bedrijf/jaar"]
[null,null,"Aantal vaarskalveren die jaarlijks vertrekken naar externe opfok",9.6024113999999994,"aantal/jaar",null,"Vergoeding externe arbeid",35723.446623271542,"euro/bedrijf/jaar"]
[null,null,"Aantal aangekochte vaarzen",0,"aantal/jaar"]
[null,null,"Oppervlakte blijvend grasland",5,"ha",null,"Ingeschatte arbeidsbehoefte"]
[null,null,"Benutte oppervlakte voor mais zonder derogatie",30.579357000000002,"ha",null,"Voor melkvee: 39 uren/melkkoe/jaar, i.g.v. melkrobot wordt 30% minder arbeid verondersteld",4290,"uren/jaar"]
[null,null,"Benutte oppervlakte voor tijdelijk grasland zonder derogatie",0,"ha",null,"Voor jongvee: 7 uren/gemiddeld aanwezig dier/jaar",331.77091499999995,"uren/jaar"]
[null,null,"Benutte oppervlakte voor mais met derogatie (voorafgegaan door snede gras)",0,"ha",null,"Voor veldwerk: gras, 15 uren/ha/jaar en mais, 8 uren/ha/jaar",610.94450099999995,"uren/jaar"]
[null,null,"Benutte oppervlakte voor tijdelijk grasland met derogatie",19.420642999999998,"ha",null,"Benodigde externe arbeid",2232.715416,"uren/jaar"]
[null,null,"Te pachten grond",0,"ha",null,"Benodigde externe arbeid (aan 1 VTE = 1976 uren = 38 uren/week * 52 weken)",1.1299167085020243,"VTE"]
[null,null,"Mestoverschot rundermengmest voor externe mestafzet (lange afstandstransport en verwerking)",294.66043999999999,"ton RMM2/jaar"]
[null,null,"Aantal reforme koeien",29.7,"aantal/jaar",null,{"$f":"IF(D67+D68+D69+D70>=P_Oppervlakte_eigen_grond+D71,\"Mogelijk is het interessant om maïs aan te kopen i.p.v. te telen en aardappelen te telen op de vrijgekomen oppervlakte. De som van het bruto saldo van aardappelen en de weggevallen kosten van maïsteelt moet dan groter zijn dan de aankoopkosten van maïs.\",\"\")","v":"Mogelijk is het interessant om maïs aan te kopen i.p.v. te telen en aardappelen te telen op de vrijgekomen oppervlakte. De som van het bruto saldo van aardappelen en de weggevallen kosten van maïsteelt moet dan groter zijn dan de aankoopkosten van maïs."}]
[null,null,"Aankoop mais op stam",0,"ha/jaar"]
[null,null,"Aantal aangekochte NERs",0,"aantal"]
[null,null,"Aantal benutte NERs",16591.174595,"aantal"]
[null,null,"Benutte oppervlakte voor mestafzet in burenregeling",5,"ha"]
[null,null,"Vaste oppervlakte gras voor maïs gecombineerd voor afzet rundermengmest zonder derogatie of voor afzet varkensmest",0,"ha"]
[null,null,"Onder- en bovengrens waarbij de oplossing optimaal blijft","Onder","Boven"]
[null,null,"Melkprijs",28.836231392941176,34.221852310588233,"€/100 L"]
[null,null,"Melkproductie per koe",6504.9075836363627,8585.7156654545452,"L/melkkoe"]
[null,null,"Prijs externe opfok per gemiddeld aanwezig stuk jongvee",54.382080183748791,59.571567952498789,"€/maand"]
[null,null,"Prijs aangekochte vaars",1304.7437777699854,1E+100,"€/vaars"]
[null,null,"Pachtprijs grond",469.46906949998549,1E+100,"euro/ha/jaar"]
[null,null,"Aankoopprijs maïs op stam per ha (excl. hakselen)",893.30240359999993,1E+100,"euro/ha"]
[null,null,"Prijs per ton externe mestafzet (gemiddelde lange afstandstransport en verwerking)",6.368094814,13.130733665999999,"euro/ton mest"]
[null,null,"Prijs per NER",2.1022558020171593E-11,4.8543689320388343E+100,"euro"]
[null,null,"Vergoeding eigen arbeid",-1E+100,16.000000139994761,"euro/uur"]
[null,null,"Vergoeding externe arbeid",15.246358337500762,18.55677853300076,"euro/uur"]
[null,null,"Variabele kosten voor melkkoeien per 100 liter melk",11.778147689411764,17.163768607058824,"€/100 L"]
[null,null,"1 Gemiddeld aanwezig dier 2 Rundermengmest"]
[null,null,null,34,170]
[null,null,null,8500,60]
[null,null,null,12,100]
[null,null,null,null,0]
[null,null,null,390,0]
[null,null,null,55,50]
[null,null,null,5,790]
[null,null,null,2,1000]
[null,null,null,14,1000]
[null,null,null,14,30]
[null,null,null,6,10]
[null,null,null,23,15]
[null,null,null,225,1350]
[null,null,null,null,30]
[null,null,null,700,5]
[null,null,null,100,125]
[null,null,null,100,10]
[null,null,null,55,60]
[null,null,null,1400,5]
[null,null,null,null,0]
[null,null,null,27,17500]
[null,null,null,null,3.9]
[]
[null,null,null,0,2000]
[null,null,null,100,4500]
[null,null,null,0,18]
[null,null,null,0,1]
[null,null,null,null,3000]
[null,null,null,null,18]
[null,null,null,1,1]
[null,null,null,2.5,500]
[null,null,null,14,18]
[null,null,null,400]
[null,null,"Beperkte aansprakelijkheid"]
[null,null,"De Routeplanner Melkvee rekentool werd door ILVO, Boerenbond, Hooibeekhoeve en Inagro met de meeste zorg en nauwkeurigheid opgesteld. Er wordt evenwel geen enkele garantie gegeven omtrent de juistheid of de volledigheid van de informatie geleverd met deze rekentool. De gebruiker van deze rekentool ziet af van elke klacht tegen de projectpartners, van welke aard ook, met betrekking tot het gebruik van de rekentool en van de via deze rekentool beschikbaar gestelde informatie. In geen geval zullen ILVO, Boerenbond, Hooibeekhoeve en Inagro aansprakelijk kunnen worden gesteld voor eventuele nadelige gevolgen die voortvloeien uit het gebruik van de rekentool en van de via deze rekentool beschikbaar gestelde informatie. ",null,9]
[null,null,null,1,5]
[null,null,null,3000,348]
[null,null,null,10.51,7]
[null,null,null,16,2]
[null,null,null,0,0]
[null,null,null,null,0]
[null,null,"Auteursrechten"]
[null,null,"Alle rechten van intellectuele eigendom betreffende de rekentool Routeplanner Melkvee berusten bij ILVO, Boerenbond, Hooibeekhoeve en Inagro. Kopiëren, verspreiden en elk ander gebruik van de rekentool en achterliggen code is niet toegestaan zonder schriftelijke toestemming van elk van hen."]

{"sheet":"Grafieken","index":2,"n_rows":122,"n_cols":8,"rows_kept":122,"cut":false,"hidden":false,"merged":[]}
[101422.99683938589,{"$f":"A1-$A$27","v":3984.2941576573648},0,122.48174,1037.3117]
[100886.4457993859,{"$f":"A2-$A$27","v":3447.7431176573737},1,122.48174,536.55103999999994]
[100349.89475938588,2911.1920776573534,2,122.48174,536.55103999999994]
[99813.343719385884,2374.6410376573622,3,122.48174,536.55103999999994]
[99360.126039385883,1921.4233576573606,4,122.48174,359.46769999999998]
[99000.658339385875,1561.9556576573523,5,122.48174,359.46769999999998]
[98641.190639385895,1202.487957657373,6,122.48174,359.46769999999998]
[98322.684001728543,883.98132000002079,7,110,294.66043999999999]
[98028.023561728536,589.32088000001386,8,110,294.66043999999999]
[97733.363121728529,294.66044000000693,9,110,294.66043999999999]
[97438.702681728522,0,10,110,294.66043999999999]
[97144.042241728544,-294.66043999997783,11,110,294.66043999999999]
[96849.381801728538,-589.32087999998475,12,110,294.66043999999999]
[96554.721361728531,-883.98131999999168,13,110,294.66043999999999]
[96439.496993004694,-999.20568872382864,14,110,88.237081000000003]
[96351.259912004694,-1087.442769723828,15,110,88.237081000000003]
[96263.022831004695,-1175.6798507238273,16,110,88.237081000000003]
[96174.785750004696,-1263.9169317238266,17,110,88.237081000000003]
[96086.548669004696,-1352.1540127238259,18,110,88.237081000000003]
[95998.311588004697,-1440.3910937238252,19,110,88.237081000000003]
[95910.074507004698,-1528.6281747238245,20,110,88.237081000000003]
[95821.837426004669,-1616.8652557238529,21,110,88.237081000000003]
[95733.60034500467,-1705.1023367238522,22,110,88.237081000000003]
[95645.363264004671,-1793.3394177238515,23,110,88.237081000000003]
[95573.362945745845,-1865.3397359826777,24,110,0]
[95573.362945745845,-1865.3397359826777,25,110,0]
[97438.702681728522]
[]
[]
[106113.20284331439,{"$f":"A30-$A$56","v":8674.5001615858637},0,143.05226999999999,30]
[104613.20284331439,{"$f":"A31-$A$56","v":7174.5001615858637},50,143.05226999999999,30]
[103113.20284331439,5674.5001615858637,100,143.05226999999999,30]
[101613.20284331439,4174.5001615858637,150,143.05226999999999,30]
[100113.20284331439,2674.5001615858637,200,143.05226999999999,30]
[98979.157653111237,1540.4549713827146,250,111.05576000000001,11.625477999999999]
[98397.883753111237,959.18107138271444,300,111.05576000000001,11.625477999999999]
[97816.609853111237,377.9071713827143,350,111.05576000000001,11.625477999999999]
[97629.294013111241,190.59133138271864,400,111.05576000000001,3.0300300999999998]
[97489.240621222096,50.537939493573504,450,110,2.5958380999999999]
[97438.702681728522,0,500,110,0]
[97438.702681728522,0,550,110,0]
[97438.702681728522,0,600,110,0]
[97438.702681728522,0,650,110,0]
[97438.702681728522,0,700,110,0]
[97438.702681728522,0,750,110,0]
[97438.702681728522,0,800,110,0]
[97438.702681728522,0,850,110,0]
[97438.702681728522,0,900,110,0]
[97438.702681728522,0,950,110,0]
[97438.702681728522,0,1000,110,0]
[97438.702681728522,0,1050,110,0]
[97438.702681728522,0,1100,110,0]
[97438.702681728522,0,1150,110,0]
[97438.702681728522,0,1200,110,0]
[]
[{"$f":"A27","v":97438.702681728522},null,null,null,null,null,null,0]
[null,null,null,null,null,null,null,0]
[null,null,null,null,null,null,null,0]
[]
[97701.508940535248,{"$f":"A60-$A$94","v":262.80625880672596},800,111.05576000000001,3.0300300999999998,null,null,0]
[97551.107948298755,{"$f":"A61-$A$94","v":112.40526657023293},850,110,2.5958380999999999,null,null,0]
[97438.702681728522,0,900,110,0,null,null,0]
[97438.702681728522,0,950,110,0,null,null,"NVT"]
[97438.702681728522,0,1000,110,0,null,null,"NVT"]
[97438.702681728522,0,1050,110,0]
[97438.702681728522,0,1100,110,0]
[97438.702681728522,0,1150,110,0]
[97438.702681728522,0,1200,110,0]
[97438.702681728522,0,1250,110,0]
[97438.702681728522,0,1300,110,0]
[97438.702681728522,0,1350,110,0]
[97438.702681728522,0,1400,110,0]
[97438.702681728522,0,1450,110,0]
[97438.702681728522,0,1500,110,0]
[97438.702681728522,0,1550,110,0]
[97438.702681728522,0,1600,110,0]
[97438.702681728522,0,1650,110,0]
[97438.702681728522,0,1700,110,0]
[97438.702681728522,0,1750,110,0]
[97438.702681728522,0,1800,110,0]
[97438.702681728522,0,1850,110,0]
[97438.702681728522,0,1900,110,0]
[97438.702681728522,0,1950,110,0]
[97438.702681728522,0,2000,110,0]
[97438.702681728522,0,2050,110,0]
[97438.702681728522,0,2100,110,0]
[97438.702681728522,0,2150,110,0]
[97438.702681728522,0,2200,110,0]
[97438.702681728522,0,2250,110,0]
[97438.702681728522,0,2300,110,0]
[97438.702681728522,0,2350,110,0]
[97438.702681728522,0,2400,110,0]
[]
[{"$f":"A27","v":97438.702681728522}]
[]
[]
[]
[]
[]
[19134.114210000014,{"$f":"A100-$A$122","v":-78304.588471728508},25,61.673115000000003]
[25987.802522805381,{"$f":"A101-$A$122","v":-71450.900158923148},26,86.793522999999993]
[33819.021322622517,-63619.681359106005,27,94.026315999999994]
[41811.258182622492,-55627.44449910603,28,94.026315999999994]
[50688.702681728457,-46750.000000000065,29,110]
[60038.702681728486,-37400.000000000036,30,110]
[69388.702681728493,-28050.000000000029,31,110]
[78738.702681728493,-18700.000000000029,32,110]
[88088.702681728522,-9350,33,110]
[97438.702681728522,0,34,110]
[107614.26773938583,10175.56505765731,35,122.48174]
[118025.21563938586,20586.512957657338,36,122.48174]
[128641.44291017609,31202.740228447568,37,129.08995999999999]
[140044.63190543189,42605.929223703366,38,189.28997000000001]
[157356.10672180384,59917.404040075315,39,210]
[175206.10672180384,77767.404040075315,40,210]
[193056.10672180384,95617.404040075315,41,210]
[210906.10672180384,113467.40404007531,42,210]
[228756.10672180384,131317.40404007531,43,210]
[246606.10672180378,149167.40404007526,44,210]
[264456.10672180378,167017.40404007526,45,210]
[]
[{"$f":"A27","v":97438.702681728522}]